[Event "IIFL Wealth  4th Mumbai Junior U-13"]
[Site "Mumbai"]
[Date "2019.01.01"]
[Round "3"]
[White "Shrey Nilkant"]
[Black "Bhandari, Arjun Neel"]
[Result "1-0"]
[ECO "C42"]
[WhiteElo "1466"]
[BlackElo "1156"]
[Annotator "NA RC"]
[PlyCount "80"]
[EventDate "2018.12.30"]
[EventType "swiss"]
[EventCountry "IND"]
[SourceTitle "playchess.com"]
[Source "ChessBase"]
[SourceQuality "1"]
[TimeControl "40/5400+30:1800+30"]

1. e4 {[%emt 0:00:13]} e5 {[%emt 0:16:22]} 2. Nf3 Nf6 {[%emt 0:00:23]} 3. Nxe5 {[%emt 0:00:21]} d6 {[%emt 0:00:12]} 4. Nf3 {[%emt 0:00:08]} Nxe4 {[%emt 0:00:07]} 5. d4 {[%emt 0:00:09]} d5 {[%emt 0:00:19]} 6. Bd3 {[%emt 0:00:16]} Bd6 {[%emt 0:00:44]} 7. O-O {[%emt 0:01:01]} O-O {[%emt 0:00:11]} 8. c4 {[%emt 0:01:10]} Nf6 {[%emt 0:00:44]} 9. cxd5 {[%emt 0:04:29]} Nxd5 {[%emt 0:00:23]} 10. Nc3 {[%emt 0:01:39]} Nxc3 {[%emt 0:01:15]} 11. bxc3 {[%emt 0:00:11]} Bg4 {[%emt 0:00:49]} 12. h3 {[%emt 0:04:57]} Bh5 {[%emt 0:00:39]} 13. Rb1 {[%emt 0:01:28]} b6 {[%emt 0:00:49]} 14. Rb5 {[%emt 0:12:01]} Bg6 {[%emt 0:00:40]} 15. c4 {[%emt 0:03:01]} c6 {[%emt 0:01:26]} 16. Rb1 {[%emt 0:01:25]} Nd7 {[%emt 0:03:36]} 17. Bxg6 {[%emt 0:03:06]} fxg6 {[%emt 0:00:26]} 18. d5 {[%emt 0:02:00]} c5 {[%emt 0:00:50]} 19. Ng5 {[%emt 0:01:54]} Rf5 {[%emt 0:00:14]} 20. Ne6 {[%emt 0:02:43]} Qf6 {[%emt 0:00:53]} 21. f4 {[%emt 0:24:11]} Qc3 {[%emt 0:02:24]} 22. Qe2 {[%emt 0:01:57]} Rf7 {[%emt 0:00:45]} 23. Bb2 {[%emt 0:05:59]} Qg3 {[%emt 0:00:27]} 24. Rf3 {[%emt 0:00:37]} Qh4 {[%emt 0:00:32]} 25. Qd2 {[%emt 0:11:52]} Nf6 {[%emt 0:01:03]} 26. Re1 {[%emt 0:01:29]} Nh5 {[%emt 0:00:38]} 27. g4 {[%emt 0:01:49]} Nf6 {[%emt 0:01:35]} 28. Kg2 {[%emt 0:01:47]} Re8 {[%emt 0:00:35]} 29. Be5 {[%emt 0:01:07]} Bxe5 {[%emt 0:00:29]} 30. fxe5 {[%emt 0:04:03]} Nd7 {[%emt 0:01:59]} 31. Rxf7 {[%emt 0:00:08]} Kxf7 {[%emt 0:00:11]} 32. Ng5+ {[%emt 0:00:17]} Kg8 {[%emt 0:00:39]} 33. d6 {[%emt 0:04:39]} h6 {[%emt 0:03:21]} 34. Qd5+ {[%emt 0:01:58]} Kh8 {[%emt 0:00:58]} 35. Nf7+ {[%emt 0:00:08]} Kh7 {[%emt 0:00:09]} 36. Rf1 {[%emt 0:00:08]} Rxe5 {[%emt 0:03:06]} 37. Nxe5 {[%emt 0:00:11]} Nxe5 {[%emt 0:00:38]} 38. Qxe5 {[%emt 0:00:02]} Qd8 {[%emt 0:00:37]} 39. Qe7 {[%emt 0:00:19]} Qa8+ {[%emt 0:01:35]} 40. Rf3 {[%emt 0:00:00]} Qxf3+ 1-0

[Event "IIFL Wealth  4th Mumbai Junior U-13"]
[Site "Mumbai"]
[Date "2019.01.01"]
[Round "3"]
[White "Singh, Arjun Kumar"]
[Black "Aditya Sriram"]
[Result "1-0"]
[ECO "A01"]
[WhiteElo "1461"]
[BlackElo "1315"]
[Annotator "NA RC"]
[PlyCount "83"]
[EventDate "2018.12.30"]
[EventType "swiss"]
[EventCountry "IND"]
[SourceTitle "playchess.com"]
[Source "ChessBase"]
[SourceQuality "1"]
[TimeControl "40/5400+30:1800+30"]

1. b3 {[%emt 0:00:00]} e5 {[%emt 0:01:07]} 2. Bb2 {[%emt 0:01:13]} Nc6 {[%emt 0:00:34]} 3. e3 {[%emt 0:01:29]} a6 {[%emt 0:00:52]} 4. d4 {[%emt 0:02:19]} exd4 {[%emt 0:00:57]} 5. exd4 {[%emt 0:00:14]} d5 {[%emt 0:01:46]} 6. Nf3 {[%emt 0:00:24]} g6 {[%emt 0:02:47]} 7. Bd3 {[%emt 0:00:09]} Bg7 {[%emt 0:00:18]} 8. O-O {[%emt 0:00:11]} Nge7 {[%emt 0:03:06]} 9. Ne5 {[%emt 0:08:20]} Nb4 {[%emt 0:07:43]} 10. Be2 {[%emt 0:09:13]} Bf5 {[%emt 0:02:44]} 11. Nd3 {[%emt 0:09:04]} Nec6 {[%emt 0:05:32]} 12. c3 {[%emt 0:00:59]} Nxd3 {[%emt 0:00:29]} 13. Bxd3 {[%emt 0:00:08]} Bxd3 {[%emt 0:01:40]} 14. Qxd3 {[%emt 0:00:09]} O-O {[%emt 0:00:24]} 15. Nd2 {[%emt 0:00:08]} Re8 {[%emt 0:02:53]} 16. Nf3 {[%emt 0:00:23]} Rc8 {[%emt 0:06:22]} 17. h3 {[%emt 0:03:30]} Na7 {[%emt 0:01:24]} 18. Rad1 {[%emt 0:02:59]} Qf6 {[%emt 0:04:09]} 19. Rd2 {[%emt 0:01:22]} Red8 {[%emt 0:02:06]} 20. Re1 {[%emt 0:03:30]} c5 {[%emt 0:08:44]} 21. dxc5 {[%emt 0:00:09]} Rxc5 {[%emt 0:01:17]} 22. c4 {[%emt 0:00:06]} Qb6 {[%emt 0:12:21]} 23. Bxg7 {[%emt 0:00:20]} Kxg7 {[%emt 0:00:03]} 24. Qd4+ {[%emt 0:00:35]} Kg8 {[%emt 0:00:07]} 25. cxd5 {[%emt 0:00:10]} Nb5 {[%emt 0:01:28]} 26. Qe3 {[%emt 0:05:06]} Qc7 {[%emt 0:07:16]} 27. Red1 {[%emt 0:01:23]} b6 {[%emt 0:03:54]} 28. Ng5 {[%emt 0:01:27]} Rc1 {[%emt 0:07:20]} 29. Ne4 {[%emt 0:01:16]} Rxd1+ {[%emt 0:00:21]} 30. Rxd1 {[%emt 0:00:05]} Kg7 {[%emt 0:02:53]} 31. d6 {[%emt 0:00:18]} Qb7 {[%emt 0:00:36]} 32. a4 {[%emt 0:00:23]} Na7 {[%emt 0:00:35]} 33. Qd4+ {[%emt 0:00:26]} Kg8 {[%emt 0:02:04]} 34. Nf6+ {[%emt 0:00:09]} Kf8 {[%emt 0:00:25]} 35. Nxh7+ {[%emt 0:00:14]} Kg8 {[%emt 0:00:09]} 36. Nf6+ {[%emt 0:00:03]} Kf8 {[%emt 0:01:00]} 37. Nd5 {[%emt 0:00:44]} Ke8 {[%emt 0:00:54]} 38. Re1+ {[%emt 0:00:15]} Kd7 {[%emt 0:00:10]} 39. Re7+ {[%emt 0:00:02]} Kc8 {[%emt 0:00:06]} 40. Rxb7 {[%emt 0:00:00]} Kxb7 {[%emt 0:00:00]} 41. Qxb6+ {[%emt 0:00:24]} Kc8 {[%emt 0:00:15]} 42. Qc7# {[%emt 0:00:06]} 1-0

[Event "IIFL Wealth  4th Mumbai Junior U-13"]
[Site "Mumbai"]
[Date "2019.01.01"]
[Round "3"]
[White "Nanal Arnav"]
[Black "Daware Arth K"]
[Result "1-0"]
[ECO "B00"]
[WhiteElo "1456"]
[BlackElo "1155"]
[Annotator "NA RC"]
[PlyCount "118"]
[EventDate "2018.12.30"]
[EventType "swiss"]
[EventCountry "IND"]
[SourceTitle "playchess.com"]
[Source "ChessBase"]
[SourceQuality "1"]
[TimeControl "40/5400+30:1800+30"]

1. e4 {[%emt 0:00:00]} Nc6 {[%emt 0:06:45]} 2. d4 {[%emt 0:00:00]} e5 {[%emt 0:00:18]} 3. d5 {[%emt 0:01:33]} Nce7 {[%emt 0:00:23]} 4. Nf3 {[%emt 0:00:29]} Ng6 {[%emt 0:01:09]} 5. Nc3 {[%emt 0:01:04]} Nf6 {[%emt 0:02:51]} 6. Be3 {[%emt 0:00:53]} Bb4 {[%emt 0:00:57]} 7. Bd3 {[%emt 0:00:44]} a6 {[%emt 0:00:45]} 8. O-O {[%emt 0:00:37]} Bxc3 {[%emt 0:02:50]} 9. bxc3 {[%emt 0:00:06]} d6 {[%emt 0:01:20]} 10. h3 {[%emt 0:02:02]} O-O {[%emt 0:01:53]} 11. c4 {[%emt 0:02:15]} b6 {[%emt 0:02:48]} 12. a4 {[%emt 0:09:50]} Bd7 {[%emt 0:07:12]} 13. a5 {[%emt 0:00:56]} b5 {[%emt 0:09:21]} 14. cxb5 {[%emt 0:09:40]} Bxb5 {[%emt 0:05:15]} 15. Bxb5 {[%emt 0:01:38]} axb5 {[%emt 0:00:17]} 16. Qd3 {[%emt 0:00:34]} Qd7 {[%emt 0:00:49]} 17. Rfb1 {[%emt 0:01:50]} Rfb8 {[%emt 0:00:54]} 18. a6 {[%emt 0:01:41]} Ne7 {[%emt 0:02:20]} 19. Ra5 Nexd5 {[%emt 0:10:20]} 20. exd5 {[%emt 0:09:31]} e4 {[%emt 0:04:02]} 21. Raxb5 {[%emt 0:02:12]} Re8 {[%emt 0:14:36]} 22. Qb3 {[%emt 0:06:36]} exf3 {[%emt 0:08:02]} 23. a7 {[%emt 0:07:41]} h6 {[%emt 0:05:40]} 24. Rb8 {[%emt 0:03:58]} Kh7 {[%emt 0:03:10]} 25. Rxa8 {[%emt 0:03:28]} Rxa8 {[%emt 0:00:39]} 26. Qb8 {[%emt 0:00:45]} Rxb8 {[%emt 0:00:10]} 27. axb8=Q {[%emt 0:00:20]} fxg2 {[%emt 0:00:23]} 28. Kxg2 {[%emt 0:01:09]} Nxd5 {[%emt 0:00:15]} 29. Qb5 {[%emt 0:01:21]} Qe6 {[%emt 0:00:57]} 30. Qd3+ {[%emt 0:00:15]} g6 {[%emt 0:01:50]} 31. Rd1 {[%emt 0:01:00]} Nb4 {[%emt 0:01:04]} 32. Qb3 {[%emt 0:00:29]} Qe4+ {[%emt 0:01:35]} 33. f3 {[%emt 0:00:14]} Qxc2+ {[%emt 0:00:41]} 34. Qxc2 {[%emt 0:00:05]} Nxc2 {[%emt 0:00:11]} 35. Kf2 {[%emt 0:00:17]} Nxe3 {[%emt 0:01:00]} 36. Kxe3 {[%emt 0:00:03]} Kg7 {[%emt 0:00:16]} 37. Rc1 {[%emt 0:00:03]} c5 {[%emt 0:00:06]} 38. Rd1 {[%emt 0:00:03]} Kf6 {[%emt 0:00:18]} 39. Rxd6+ {[%emt 0:00:04]} Kg5 {[%emt 0:00:11]} 40. Kf2 {[%emt 0:00:00]} Kh4 {[%emt 0:00:00]} 41. Kg2 {[%emt 0:00:15]} Kh5 {[%emt 0:01:08]} 42. Rd5+ {[%emt 0:00:03]} f5 {[%emt 0:00:15]} 43. Rxc5 {[%emt 0:00:04]} Kh4 {[%emt 0:00:11]} 44. Rc6 {[%emt 0:00:07]} Kg5 {[%emt 0:00:31]} 45. h4+ {[%emt 0:00:04]} Kh5 {[%emt 0:01:33]} 46. Rd6 {[%emt 0:00:11]} Kxh4 {[%emt 0:00:15]} 47. Rxg6 {[%emt 0:00:04]} Kh5 {[%emt 0:00:05]} 48. Re6 {[%emt 0:00:07]} Kg5 {[%emt 0:00:13]} 49. f4+ {[%emt 0:00:03]} Kxf4 {[%emt 0:00:16]} 50. Rxh6 {[%emt 0:00:04]} Ke3 {[%emt 0:00:10]} 51. Kf1 {[%emt 0:00:05]} Kf3 {[%emt 0:00:17]} 52. Rf6 {[%emt 0:00:04]} Kg4 {[%emt 0:00:05]} 53. Kf2 {[%emt 0:00:05]} Kf4 {[%emt 0:00:14]} 54. Rf8 {[%emt 0:00:04]} Ke4 {[%emt 0:00:24]} 55. Kg3 {[%emt 0:00:02]} f4+ {[%emt 0:00:18]} 56. Rxf4+ {[%emt 0:00:04]} Ke5 {[%emt 0:00:16]} 57. Kf3 {[%emt 0:00:03]} Kd5 {[%emt 0:00:12]} 58. Re4 {[%emt 0:00:03]} Kd6 {[%emt 0:00:28]} 59. Kf4 {[%emt 0:00:06]} Kd5 1-0

[Event "IIFL Wealth  4th Mumbai Junior U-13"]
[Site "Mumbai"]
[Date "2019.01.01"]
[Round "3"]
[White "Sairaj Dilip Vernekar"]
[Black "Sriram S N"]
[Result "1-0"]
[ECO "B23"]
[WhiteElo "1445"]
[BlackElo "1139"]
[Annotator "NA RC"]
[PlyCount "111"]
[EventDate "2018.12.30"]
[EventType "swiss"]
[EventCountry "IND"]
[SourceTitle "playchess.com"]
[Source "ChessBase"]
[SourceQuality "1"]
[TimeControl "40/5400+30:1800+30"]

1. e4 {[%emt 0:00:00]} c5 {[%emt 0:00:15]} 2. Nc3 {[%emt 0:00:00]} d6 {[%emt 0:02:42]} 3. f4 {[%emt 0:00:00]} e6 {[%emt 0:01:00]} 4. Nf3 {[%emt 0:00:02]} a6 {[%emt 0:02:16]} 5. a4 {[%emt 0:01:48]} Nc6 {[%emt 0:00:34]} 6. g3 {[%emt 0:02:36]} Be7 {[%emt 0:02:23]} 7. Bg2 {[%emt 0:02:24]} Qc7 {[%emt 0:09:29]} 8. d3 {[%emt 0:00:54]} Nf6 {[%emt 0:05:26]} 9. O-O {[%emt 0:02:05]} O-O {[%emt 0:01:35]} 10. h3 {[%emt 0:01:47]} Bd7 {[%emt 0:08:09]} 11. g4 {[%emt 0:00:43]} Ne8 {[%emt 0:02:18]} 12. f5 {[%emt 0:01:48]} exf5 {[%emt 0:09:01]} 13. gxf5 {[%emt 0:05:52]} Nf6 {[%emt 0:07:51]} 14. Qe1 {[%emt 0:01:31]} Nb4 {[%emt 0:05:01]} 15. Qe2 {[%emt 0:03:22]} b5 {[%emt 0:07:03]} 16. e5 {[%emt 0:05:17]} dxe5 {[%emt 0:03:14]} 17. Nxe5 {[%emt 0:00:13]} Ra7 {[%emt 0:01:28]} 18. Nxd7 {[%emt 0:01:07]} Qxd7 {[%emt 0:00:20]} 19. axb5 {[%emt 0:00:14]} axb5 {[%emt 0:09:01]} 20. Rxa7 {[%emt 0:00:07]} Qxa7 {[%emt 0:00:00]} 21. Nxb5 {[%emt 0:00:00]} Qd7 {[%emt 0:00:08]} 22. Nc3 {[%emt 0:00:27]} Re8 {[%emt 0:00:41]} 23. Ne4 {[%emt 0:04:20]} Qd4+ {[%emt 0:04:01]} 24. Kh1 {[%emt 0:01:52]} Nxe4 {[%emt 0:01:31]} 25. Bxe4 {[%emt 0:02:41]} Bf6 {[%emt 0:01:17]} 26. c3 {[%emt 0:01:20]} Qe5 {[%emt 0:08:21]} 27. cxb4 {[%emt 0:00:12]} cxb4 {[%emt 0:00:34]} 28. Re1 {[%emt 0:02:11]} Qg3 {[%emt 0:02:09]} 29. Qe3 {[%emt 0:00:29]} Qe5 {[%emt 0:03:03]} 30. Bc6 {[%emt 0:02:02]} Qxe3 {[%emt 0:01:15]} 31. Bxe3 {[%emt 0:00:14]} Rc8 {[%emt 0:00:53]} 32. Bc1 {[%emt 0:00:50]} h6 {[%emt 0:00:48]} 33. Re8+ {[%emt 0:01:33]} Rxe8 {[%emt 0:00:05]} 34. Bxe8 {[%emt 0:00:07]} Kf8 {[%emt 0:00:30]} 35. Ba4 {[%emt 0:00:34]} Ke7 {[%emt 0:00:16]} 36. Bb3 {[%emt 0:01:08]} Bd4 {[%emt 0:00:28]} 37. Bd5 {[%emt 0:00:42]} f6 {[%emt 0:00:55]} 38. b3 {[%emt 0:00:23]} Kd6 {[%emt 0:00:13]} 39. Be4 {[%emt 0:00:00]} Ke5 {[%emt 0:00:00]} 40. Kg2 {[%emt 0:00:00]} Bc5 {[%emt 0:00:00]} 41. Kf3 {[%emt 0:01:11]} Bd4 {[%emt 0:02:33]} 42. Be3 {[%emt 0:00:32]} Bb2 {[%emt 0:01:05]} 43. Kg4 {[%emt 0:00:10]} Kd6 {[%emt 0:01:46]} 44. Kh5 {[%emt 0:00:10]} Be5 {[%emt 0:07:23]} 45. Kg6 {[%emt 0:00:08]} Bg3 {[%emt 0:01:16]} 46. Kxg7 {[%emt 0:01:54]} h5 {[%emt 0:00:57]} 47. Kxf6 {[%emt 0:00:09]} h4 {[%emt 0:00:57]} 48. Kg6 {[%emt 0:00:11]} Kd7 {[%emt 0:00:51]} 49. Bc5 {[%emt 0:00:14]} Be1 {[%emt 0:00:16]} 50. f6 {[%emt 0:00:11]} Ke8 {[%emt 0:01:08]} 51. f7+ {[%emt 0:00:04]} Kd7 {[%emt 0:00:14]} 52. f8=Q {[%emt 0:00:11]} Bg3 {[%emt 0:00:40]} 53. Qf7+ {[%emt 0:00:07]} Kc8 {[%emt 0:01:04]} 54. Qb7+ {[%emt 0:00:05]} Kd8 {[%emt 0:01:36]} 55. Be7+ {[%emt 0:00:05]} Ke8 {[%emt 0:02:04]} 56. Bc6# {[%emt 0:00:03]} 1-0

[Event "IIFL Wealth  4th Mumbai Junior U-13"]
[Site "Mumbai"]
[Date "2019.01.01"]
[Round "3"]
[White "Athalye Varad"]
[Black "Iyer Aarav"]
[Result "1-0"]
[ECO "B83"]
[WhiteElo "1442"]
[BlackElo "1124"]
[Annotator "NA RC"]
[PlyCount "89"]
[EventDate "2018.12.30"]
[EventType "swiss"]
[EventCountry "IND"]
[SourceTitle "playchess.com"]
[Source "ChessBase"]
[SourceQuality "1"]
[TimeControl "40/5400+30:1800+30"]

1. e4 {[%emt 0:00:00]} c5 {[%emt 0:00:00]} 2. Nf3 {[%emt 0:00:00]} d6 {[%emt 0:00:00]} 3. d4 {[%emt 0:00:02]} cxd4 {[%emt 0:00:00]} 4. Nxd4 {[%emt 0:00:04]} Nf6 {[%emt 0:00:00]} 5. Nc3 {[%emt 0:00:05]} Nc6 {[%emt 0:00:20]} 6. Be2 {[%emt 0:01:51]} e6 {[%emt 0:00:27]} 7. Be3 {[%emt 0:01:09]} Be7 {[%emt 0:00:58]} 8. O-O {[%emt 0:00:39]} a6 {[%emt 0:00:37]} 9. Kh1 {[%emt 0:00:25]} Bd7 {[%emt 0:01:04]} 10. f4 {[%emt 0:02:51]} h6 {[%emt 0:05:22]} 11. Nf3 {[%emt 0:04:13]} O-O {[%emt 0:01:57]} 12. Qe1 {[%emt 0:00:53]} b5 {[%emt 0:08:00]} 13. a3 {[%emt 0:03:38]} Qc7 {[%emt 0:11:34]} 14. Qg3 {[%emt 0:02:40]} Kh8 {[%emt 0:02:19]} 15. h3 {[%emt 0:03:32]} Nh7 {[%emt 0:11:31]} 16. Qf2 {[%emt 0:03:03]} Bf6 {[%emt 0:08:13]} 17. Bd4 {[%emt 0:11:32]} Nxd4 {[%emt 0:01:23]} 18. Nxd4 {[%emt 0:00:52]} Qc5 {[%emt 0:01:33]} 19. Rad1 {[%emt 0:00:57]} Bc6 {[%emt 0:03:46]} 20. Nxc6 {[%emt 0:03:39]} Qxc6 {[%emt 0:00:06]} 21. e5 {[%emt 0:00:24]} Bd8 {[%emt 0:05:10]} 22. Rxd6 {[%emt 0:02:57]} Qc7 23. Rfd1 {[%emt 0:00:40]} Be7 {[%emt 0:03:38]} 24. Rd7 {[%emt 0:01:00]} Qc5 {[%emt 0:00:05]} 25. Qxc5 {[%emt 0:05:44]} Bxc5 {[%emt 0:00:18]} 26. g3 {[%emt 0:00:39]} Rac8 {[%emt 0:00:16]} 27. Rb7 {[%emt 0:01:13]} Bxa3 {[%emt 0:00:45]} 28. Nxb5 {[%emt 0:04:15]} Bxb2 {[%emt 0:02:36]} 29. Nd6 {[%emt 0:00:41]} Rxc2 {[%emt 0:03:44]} 30. Bd3 {[%emt 0:00:21]} Rc1 {[%emt 0:02:36]} 31. Rxc1 {[%emt 0:03:19]} Bxc1 {[%emt 0:00:01]} 32. Bxa6 {[%emt 0:00:56]} Ba3 {[%emt 0:01:09]} 33. Nxf7+ {[%emt 0:01:21]} Kg8 {[%emt 0:00:43]} 34. Bc4 {[%emt 0:00:42]} Rc8 {[%emt 0:01:36]} 35. Bxe6 {[%emt 0:00:12]} Rc1+ {[%emt 0:00:06]} 36. Kg2 {[%emt 0:00:06]} Rc2+ {[%emt 0:00:12]} 37. Kf3 {[%emt 0:01:56]} Rc3+ {[%emt 0:00:04]} 38. Kg4 {[%emt 0:00:25]} h5+ {[%emt 0:00:23]} 39. Kxh5 {[%emt 0:01:35]} Nf6+ {[%emt 0:00:34]} 40. exf6 {[%emt 0:00:00]} g6+ {[%emt 0:00:00]} 41. Kxg6 {[%emt 0:00:41]} Rc7 {[%emt 0:01:02]} 42. Ng5+ {[%emt 0:00:26]} Kh8 {[%emt 0:00:21]} 43. Rb8+ {[%emt 0:00:07]} Rc8 {[%emt 0:00:06]} 44. Rxc8+ {[%emt 0:00:04]} Bf8 {[%emt 0:00:08]} 45. Rxf8# {[%emt 0:00:04]} 1-0

[Event "IIFL Wealth  4th Mumbai Junior U-13"]
[Site "Mumbai"]
[Date "2019.01.01"]
[Round "3"]
[White "Swara Lakshmi S Nair"]
[Black "Jain Aryan S"]
[Result "1-0"]
[ECO "C45"]
[WhiteElo "1415"]
[BlackElo "1115"]
[Annotator "NA RC"]
[PlyCount "133"]
[EventDate "2018.12.30"]
[EventType "swiss"]
[EventCountry "IND"]
[SourceTitle "playchess.com"]
[Source "ChessBase"]
[SourceQuality "1"]
[TimeControl "40/5400+30:1800+30"]

1. e4 e5 2. Nf3 Nc6 3. d4 exd4 4. Nxd4 Bc5 5. Nb3 Bb6 6. Nc3 a6 7. Qe2 d6 8. Bd2 Be6 9. O-O-O a5 10. a4 Bxb3 11. cxb3 Nd4 12. Qc4 Qd7 13. Kb1 Nf6 14. Be3 c5 15. f3 Qe6 16. Bxd4 Qxc4 17. Bxc4 cxd4 18. Nb5 Rd8 19. Nxd4 O-O 20. Nb5 Bc5 21. Rd3 Rd7 22. Rhd1 Rfd8 23. Nc3 Kf8 24. g4 g5 25. Bb5 Re7 26. Nd5 Re6 27. Ne3 d5 28. Nxd5 Nxd5 29. Rxd5 Rxd5 30. Rxd5 Bb6 31. Rxg5 Rf6 32. Be2 Rh6 33. Rh5 Rxh5 34. gxh5 Kg7 35. Bc4 Bg1 36. h3 Bh2 37. Kc2 f6 38. Kd3 Kh6 39. Bf7 Kg5 40. b4 axb4 41. b3 Be5 42. Kc4 Bd6 43. Kd5 Be5 44. Kc5 Bc3 45. Kb6 h6 46. Kxb7 Kf4 47. a5 Kxf3 48. Bd5 Kg3 49. a6 Bd4 50. a7 Bxa7 51. Kxa7 Kxh3 52. Kb6 Kg4 53. Bf7 f5 54. Be6 Kxh5 55. Bxf5 Kg5 56. Kc5 h5 57. Kxb4 h4 58. Kc5 Kf4 59. b4 h3 60. Bxh3 Kxe4 61. b5 Ke5 62. b6 Kf6 63. b7 Kg5 64. b8=Q Kh4 65. Qg8 Kh5 66. Qg7 Kh4 67. Qg4# 1-0

[Event "IIFL Wealth  4th Mumbai Junior U-13"]
[Site "Mumbai"]
[Date "2019.01.01"]
[Round "3"]
[White "Abhyuday Santhosh"]
[Black "Warsia, Khusbu"]
[Result "1-0"]
[ECO "D35"]
[WhiteElo "1409"]
[BlackElo "1107"]
[Annotator "NA RC"]
[PlyCount "119"]
[EventDate "2018.12.30"]
[EventType "swiss"]
[EventCountry "IND"]
[SourceTitle "playchess.com"]
[Source "ChessBase"]
[SourceQuality "1"]
[TimeControl "40/5400+30:1800+30"]

1. d4 {[%emt 0:00:00]} Nf6 {[%emt 0:00:00]} 2. c4 {[%emt 0:00:00]} e6 {[%emt 0:00:00]} 3. Nc3 {[%emt 0:00:00]} d5 {[%emt 0:00:55]} 4. cxd5 {[%emt 0:00:06]} exd5 {[%emt 0:00:25]} 5. Bg5 {[%emt 0:00:13]} Bb4 6. e3 {[%emt 0:06:10]} h6 {[%emt 0:01:54]} 7. Bh4 {[%emt 0:00:06]} O-O {[%emt 0:02:19]} 8. Bd3 {[%emt 0:00:42]} Re8 {[%emt 0:01:38]} 9. Nge2 {[%emt 0:00:11]} Nc6 {[%emt 0:01:42]} 10. O-O {[%emt 0:00:11]} Be6 {[%emt 0:02:55]} 11. a3 {[%emt 0:02:37]} Be7 {[%emt 0:01:39]} 12. Bg3 {[%emt 0:00:30]} a6 {[%emt 0:00:51]} 13. Nf4 {[%emt 0:00:45]} Bd6 {[%emt 0:01:13]} 14. Nxe6 {[%emt 0:04:13]} fxe6 {[%emt 0:01:08]} 15. Bh4 {[%emt 0:01:39]} Be7 {[%emt 0:02:15]} 16. Qc2 {[%emt 0:10:59]} b5 {[%emt 0:04:02]} 17. Nxb5 {[%emt 0:00:51]} axb5 {[%emt 0:00:36]} 18. Qxc6 {[%emt 1:09:47]} Qd7 {[%emt 0:01:00]} 19. Qxd7 {[%emt 0:00:00]} Nxd7 {[%emt 0:00:17]} 20. Bxe7 {[%emt 0:00:00]} Rxe7 {[%emt 0:00:09]} 21. Bxb5 {[%emt 0:00:00]} Nf6 {[%emt 0:00:12]} 22. f3 {[%emt 0:00:00]} Rb8 {[%emt 0:00:10]} 23. a4 {[%emt 0:00:00]} Rb6 {[%emt 0:01:48]} 24. Rfc1 {[%emt 0:00:00]} Kf7 {[%emt 0:02:35]} 25. Rc6 {[%emt 0:00:00]} Nd7 {[%emt 0:02:09]} 26. Rxb6 {[%emt 0:00:00]} Nxb6 {[%emt 0:00:14]} 27. a5 {[%emt 0:00:00]} Nc8 {[%emt 0:01:07]} 28. a6 {[%emt 0:00:00]} Na7 {[%emt 0:00:14]} 29. Bd3 {[%emt 0:00:00]} c6 {[%emt 0:00:44]} 30. Ra3 {[%emt 0:00:00]} Ke8 {[%emt 0:00:52]} 31. Rb3 {[%emt 0:00:00]} Kd8 {[%emt 0:00:35]} 32. Rb8+ {[%emt 0:00:00]} Kc7 {[%emt 0:00:55]} 33. Rb7+ {[%emt 0:00:00]} Kd8 {[%emt 0:00:20]} 34. Rxe7 {[%emt 0:00:00]} Kxe7 {[%emt 0:00:09]} 35. Kf2 {[%emt 0:00:00]} Kd7 {[%emt 0:00:15]} 36. Kg3 {[%emt 0:00:00]} Kc7 {[%emt 0:00:06]} 37. Kf4 {[%emt 0:00:00]} Kd6 {[%emt 0:00:23]} 38. e4 {[%emt 0:00:00]} g5+ {[%emt 0:00:17]} 39. Kg4 {[%emt 0:00:00]} e5 {[%emt 0:00:47]} 40. dxe5+ {[%emt 0:00:00]} Kxe5 {[%emt 0:00:00]} 41. exd5 {[%emt 0:00:00]} cxd5 {[%emt 0:00:25]} 42. b4 {[%emt 0:00:00]} Kd4 {[%emt 0:00:16]} 43. Bf1 {[%emt 0:00:00]} Kc3 {[%emt 0:00:39]} 44. b5 {[%emt 0:00:00]} Kb4 {[%emt 0:00:29]} 45. b6 {[%emt 0:00:00]} Nc6 {[%emt 0:00:09]} 46. a7 {[%emt 0:00:00]} Nxa7 {[%emt 0:00:22]} 47. bxa7 {[%emt 0:00:00]} Kc5 {[%emt 0:01:12]} 48. a8=Q {[%emt 0:00:00]} d4 {[%emt 0:00:26]} 49. Qf8+ {[%emt 0:00:00]} Kd5 {[%emt 0:00:10]} 50. Qxh6 {[%emt 0:00:00]} d3 {[%emt 0:00:13]} 51. Bxd3 {[%emt 0:00:00]} Kd4 {[%emt 0:00:11]} 52. h4 {[%emt 0:00:00]} gxh4 {[%emt 0:00:05]} 53. f4 {[%emt 0:00:00]} Kxd3 {[%emt 0:00:13]} 54. f5 {[%emt 0:00:00]} h3 {[%emt 0:00:07]} 55. gxh3 {[%emt 0:00:00]} Ke4 {[%emt 0:00:24]} 56. f6 {[%emt 0:00:00]} Ke5 {[%emt 0:00:03]} 57. f7 {[%emt 0:00:00]} Kd5 {[%emt 0:00:13]} 58. f8=Q {[%emt 0:00:00]} Ke4 {[%emt 0:00:08]} 59. Qc5 {[%emt 0:00:00]} Kd3 {[%emt 0:00:18]} 60. Qhe3# {[%emt 0:00:00]} 1-0